[Event "Late-Titled-Tuesday-Blitz-March-26-2024"]
[Site "Chess.com"]
[Date "2024.03.26"]
[Round "3"]
[White "aa175"]
[Black "omeed_87"]
[Result "1-0"]
[WhiteElo "2723"]
[BlackElo "2419"]
[TimeControl "180+1"]
[EndTime "14:29:45 PDT"]
[Termination "aa175 won on time"]

1. d4 {[%clk 0:03:00.9]} 1... f5 {[%clk 0:02:59.7]} 2. c4 {[%clk 0:03:01.1]}
2... Nf6 {[%clk 0:02:59.8]} 3. Nc3 {[%clk 0:03:01.7]} 3... g6 {[%clk 0:02:58.3]}
4. h4 {[%clk 0:03:02]} 4... h6 {[%clk 0:02:52.8]} 5. e4 {[%clk 0:02:53]} 5... d6
{[%clk 0:02:50.5]} 6. h5 {[%clk 0:02:49.6]} 6... g5 {[%clk 0:02:50.2]} 7. exf5
{[%clk 0:02:50.2]} 7... Bxf5 {[%clk 0:02:49]} 8. Bd3 {[%clk 0:02:50.5]} 8... Qd7
{[%clk 0:02:45.7]} 9. Qf3 {[%clk 0:02:45.5]} 9... Bxd3 {[%clk 0:02:35.9]} 10.
Qxd3 {[%clk 0:02:46.4]} 10... e6 {[%clk 0:02:29.7]} 11. Qf3 {[%clk 0:02:40.5]}
11... Bg7 {[%clk 0:02:14.8]} 12. Qxb7 {[%clk 0:02:37.3]} 12... O-O {[%clk
0:02:11.4]} 13. Qxa8 {[%clk 0:02:29.1]} 13... Nc6 {[%clk 0:02:11.6]} 14. Qxf8+
{[%clk 0:02:14.2]} 14... Kxf8 {[%clk 0:02:06.5]} 15. Nge2 {[%clk 0:02:12.8]}
15... Nb4 {[%clk 0:01:52.2]} 16. O-O {[%clk 0:02:05]} 16... Nxh5 {[%clk
0:01:49.2]} 17. Be3 {[%clk 0:02:02.1]} 17... Kg8 {[%clk 0:01:40.9]} 18. Rad1
{[%clk 0:01:50.4]} 18... Nf6 {[%clk 0:01:30.5]} 19. d5 {[%clk 0:01:45.5]} 19...
exd5 {[%clk 0:01:24.6]} 20. cxd5 {[%clk 0:01:45.7]} 20... a5 {[%clk 0:01:20.7]}
21. Rd2 {[%clk 0:01:38.3]} 21... Ng4 {[%clk 0:01:05.1]} 22. Bd4 {[%clk
0:01:34.3]} 22... Ne5 {[%clk 0:01:02.5]} 23. Rfd1 {[%clk 0:01:27.7]} 23... Qg4
{[%clk 0:00:46.2]} 24. Bxe5 {[%clk 0:00:57.6]} 24... Bxe5 {[%clk 0:00:46.2]} 25.
a3 {[%clk 0:00:55.9]} 25... Na6 {[%clk 0:00:40.3]} 26. Nb5 {[%clk 0:00:55.4]}
26... h5 {[%clk 0:00:25.2]} 27. Ned4 {[%clk 0:00:47.2]} 27... h4 {[%clk
0:00:17.8]} 28. Kh1 {[%clk 0:00:28.7]} 28... h3 {[%clk 0:00:17.6]} 29. g3 {[%clk
0:00:29.2]} 29... Nc5 {[%clk 0:00:10.9]} 30. Re2 {[%clk 0:00:15.1]} 30... Ne4
{[%clk 0:00:08]} 31. Rde1 {[%clk 0:00:05]} 31... Bxg3 {[%clk 0:00:02.2]} 32.
Rxe4 {[%clk 0:00:04.4]} 1-0

[Event "Late-Titled-Tuesday-Blitz-March-26-2024"]
[Site "Chess.com"]
[Date "2024.03.26"]
[Round "3"]
[White "Genghis_K"]
[Black "Karttunen"]
[Result "1-0"]
[WhiteElo "2930"]
[BlackElo "2712"]
[TimeControl "180+1"]
[EndTime "14:29:48 PDT"]
[Termination "Genghis_K won by checkmate"]

1. e4 {[%clk 0:02:58.4]} 1... c5 {[%clk 0:02:59.3]} 2. Nf3 {[%clk 0:02:58.9]}
2... d6 {[%clk 0:02:59.6]} 3. d4 {[%clk 0:02:57.8]} 3... cxd4 {[%clk 0:03:00.5]}
4. Nxd4 {[%clk 0:02:58.5]} 4... Nf6 {[%clk 0:03:00.6]} 5. Nc3 {[%clk 0:02:59.1]}
5... a6 {[%clk 0:03:00.7]} 6. Be2 {[%clk 0:02:59.4]} 6... e5 {[%clk 0:03:00.9]}
7. Nb3 {[%clk 0:02:59.7]} 7... Be7 {[%clk 0:03:01]} 8. Bg5 {[%clk 0:03:00.3]}
8... Nbd7 {[%clk 0:03:00.3]} 9. a4 {[%clk 0:03:00]} 9... h6 {[%clk 0:03:00.3]}
10. Be3 {[%clk 0:02:44.3]} 10... Qc7 {[%clk 0:02:58.2]} 11. O-O {[%clk
0:02:39.9]} 11... O-O {[%clk 0:02:56.8]} 12. a5 {[%clk 0:02:38.4]} 12... Nc5
{[%clk 0:02:50.7]} 13. Nxc5 {[%clk 0:02:36.3]} 13... dxc5 {[%clk 0:02:50.8]} 14.
Bc4 {[%clk 0:02:35.7]} 14... Bg4 {[%clk 0:02:32.3]} 15. f3 {[%clk 0:02:32.4]}
15... Be6 {[%clk 0:02:30.1]} 16. Qe2 {[%clk 0:02:26.6]} 16... Qc6 {[%clk
0:02:11.2]} 17. Na4 {[%clk 0:02:18.1]} 17... Rad8 {[%clk 0:02:09.8]} 18. Nb6
{[%clk 0:02:17.4]} 18... Nh5 {[%clk 0:01:39.5]} 19. Nd5 {[%clk 0:02:05.2]} 19...
Bxd5 {[%clk 0:01:39.5]} 20. Bxd5 {[%clk 0:02:04.4]} 20... Qc7 {[%clk 0:01:37.9]}
21. Rfd1 {[%clk 0:02:00.4]} 21... Nf6 {[%clk 0:01:27.7]} 22. Bc4 {[%clk
0:01:58]} 22... Rxd1+ {[%clk 0:01:23.9]} 23. Qxd1 {[%clk 0:01:58.6]} 23... Rd8
{[%clk 0:01:23.5]} 24. Qe1 {[%clk 0:01:58.2]} 24... Nh5 {[%clk 0:01:15.9]} 25.
g3 {[%clk 0:01:52.7]} 25... Bg5 {[%clk 0:01:13.6]} 26. Bxg5 {[%clk 0:01:39.4]}
26... hxg5 {[%clk 0:01:13.3]} 27. Qe3 {[%clk 0:01:40.1]} 27... Qe7 {[%clk
0:01:05.6]} 28. Kf2 {[%clk 0:01:35.2]} 28... Nf6 {[%clk 0:01:03.7]} 29. Be2
{[%clk 0:01:25.2]} 29... Ne8 {[%clk 0:00:59.2]} 30. c3 {[%clk 0:01:20.4]} 30...
Nc7 {[%clk 0:00:59.1]} 31. Rd1 {[%clk 0:01:18.8]} 31... Rxd1 {[%clk 0:00:58.5]}
32. Bxd1 {[%clk 0:01:19.5]} 32... g6 {[%clk 0:00:57.8]} 33. Bb3 {[%clk
0:01:16.6]} 33... Kg7 {[%clk 0:00:57]} 34. Ke2 {[%clk 0:01:16.2]} 34... Kf6
{[%clk 0:00:47.5]} 35. Qd3 {[%clk 0:01:08.8]} 35... Ne6 {[%clk 0:00:35.8]} 36.
Bd5 {[%clk 0:01:04.4]} 36... Ng7 {[%clk 0:00:27.6]} 37. Qc4 {[%clk 0:01:00.4]}
37... Ne8 {[%clk 0:00:26.8]} 38. Qb3 {[%clk 0:00:58.9]} 38... Nd6 {[%clk
0:00:26.8]} 39. Qb6 {[%clk 0:00:58.6]} 39... Kg7 {[%clk 0:00:20.3]} 40. Qxc5
{[%clk 0:00:56.7]} 40... Qd7 {[%clk 0:00:20.8]} 41. g4 {[%clk 0:00:53.3]} 41...
Ne8 {[%clk 0:00:16.4]} 42. Bb3 {[%clk 0:00:48.3]} 42... Nc7 {[%clk 0:00:14]} 43.
Qxe5+ {[%clk 0:00:48.3]} 43... Kg8 {[%clk 0:00:12.9]} 44. Qxg5 {[%clk
0:00:46.7]} 44... Kg7 {[%clk 0:00:13.2]} 45. Qe5+ {[%clk 0:00:46.5]} 45... Kh7
{[%clk 0:00:13.7]} 46. h4 {[%clk 0:00:46.5]} 46... Nb5 {[%clk 0:00:09.5]} 47. h5
{[%clk 0:00:44.4]} 47... Nd6 {[%clk 0:00:09]} 48. hxg6+ {[%clk 0:00:40.8]} 48...
fxg6 {[%clk 0:00:09.9]} 49. g5 {[%clk 0:00:38.4]} 49... Qc7 {[%clk 0:00:09.7]}
50. Qh2+ {[%clk 0:00:37.7]} 50... Kg7 {[%clk 0:00:09.5]} 51. Qh6# {[%clk
0:00:38.4]} 1-0

[Event "Late-Titled-Tuesday-Blitz-March-26-2024"]
[Site "Chess.com"]
[Date "2024.03.26"]
[Round "3"]
[White "VD_coach"]
[Black "ThinkingSquares"]
[Result "0-1"]
[WhiteElo "2503"]
[BlackElo "2796"]
[TimeControl "180+1"]
[EndTime "14:29:52 PDT"]
[Termination "ThinkingSquares won by resignation"]

1. Nf3 {[%clk 0:03:00.9]} 1... c5 {[%clk 0:02:57.6]} 2. e3 {[%clk 0:03:00.3]}
2... b6 {[%clk 0:02:57]} 3. d4 {[%clk 0:02:46.3]} 3... Nf6 {[%clk 0:02:57.3]} 4.
c4 {[%clk 0:02:45.5]} 4... g6 {[%clk 0:02:54.5]} 5. Nc3 {[%clk 0:02:45.1]} 5...
Bg7 {[%clk 0:02:55.1]} 6. Be2 {[%clk 0:02:43.5]} 6... O-O {[%clk 0:02:55]} 7. d5
{[%clk 0:02:42.2]} 7... e6 {[%clk 0:02:53.1]} 8. O-O {[%clk 0:02:27.6]} 8... d6
{[%clk 0:02:47.7]} 9. e4 {[%clk 0:02:17.4]} 9... e5 {[%clk 0:02:48]} 10. a3
{[%clk 0:01:58.4]} 10... Ne8 {[%clk 0:02:41.4]} 11. b4 {[%clk 0:01:51.8]} 11...
Na6 {[%clk 0:02:38.6]} 12. Rb1 {[%clk 0:01:48.3]} 12... f5 {[%clk 0:02:32.5]}
13. Ng5 {[%clk 0:01:47.5]} 13... Nec7 {[%clk 0:02:27.5]} 14. Nb5 {[%clk
0:01:33.9]} 14... h6 {[%clk 0:02:19.2]} 15. Ne6 {[%clk 0:01:10.5]} 15... Nxe6
{[%clk 0:02:17.5]} 16. dxe6 {[%clk 0:01:11.4]} 16... Bxe6 {[%clk 0:02:14.1]} 17.
Nxd6 {[%clk 0:00:59.4]} 17... Qe7 {[%clk 0:01:55.4]} 18. exf5 {[%clk 0:00:46.3]}
18... gxf5 {[%clk 0:01:54.8]} 19. Nb5 {[%clk 0:00:41.9]} 19... cxb4 {[%clk
0:01:49.7]} 20. axb4 {[%clk 0:00:41.5]} 20... Nxb4 {[%clk 0:01:49.8]} 21. Ba3
{[%clk 0:00:35.2]} 21... a5 {[%clk 0:01:49.8]} 22. Qb3 {[%clk 0:00:34.5]} 22...
e4 {[%clk 0:01:42.6]} 23. Bxb4 {[%clk 0:00:19.1]} 23... axb4 {[%clk 0:01:43.1]}
24. Qxb4 {[%clk 0:00:20]} 24... Qxb4 {[%clk 0:01:25.8]} 25. Rxb4 {[%clk
0:00:20.9]} 25... Ra2 {[%clk 0:01:25.8]} 26. Bd1 {[%clk 0:00:21.1]} 26... Rd8
{[%clk 0:01:24.2]} 27. Nc7 {[%clk 0:00:19.7]} 27... Bf7 {[%clk 0:01:17.5]} 28.
Nd5 {[%clk 0:00:19.7]} 28... Bd4 {[%clk 0:01:06.5]} 29. Bb3 {[%clk 0:00:16.7]}
29... Rb2 {[%clk 0:01:03.2]} 30. Ne7+ {[%clk 0:00:15.5]} 30... Kf8 {[%clk
0:01:02.2]} 31. Nc6 {[%clk 0:00:14.5]} 31... Bc5 {[%clk 0:00:54.7]} 32. Nxd8
{[%clk 0:00:07.5]} 32... Bxb4 {[%clk 0:00:54.7]} 33. Nxf7 {[%clk 0:00:08.1]}
33... Kxf7 {[%clk 0:00:52.5]} 34. Ba4 {[%clk 0:00:06.8]} 34... Bc5 {[%clk
0:00:50.5]} 35. Bd7 {[%clk 0:00:06.5]} 35... Kf6 {[%clk 0:00:50.2]} 36. g3
{[%clk 0:00:06.8]} 36... Ke5 {[%clk 0:00:48.6]} 37. h4 {[%clk 0:00:07]} 37... f4
{[%clk 0:00:48.6]} 38. gxf4+ {[%clk 0:00:07.3]} 38... Kxf4 {[%clk 0:00:49.5]}
39. Be8 {[%clk 0:00:06.7]} 39... Be7 {[%clk 0:00:46.1]} 40. Bh5 {[%clk
0:00:05.5]} 40... Bxh4 {[%clk 0:00:45.7]} 41. Bg6 {[%clk 0:00:04.4]} 41... Be7
{[%clk 0:00:45.6]} 42. Re1 {[%clk 0:00:04.4]} 42... Kg5 {[%clk 0:00:44.6]} 43.
Bxe4 {[%clk 0:00:04.3]} 43... Bc5 {[%clk 0:00:45.3]} 44. Kh1 {[%clk 0:00:03.4]}
44... Rxf2 {[%clk 0:00:44.4]} 45. Bd5 {[%clk 0:00:04]} 45... Rd2 {[%clk
0:00:43.8]} 46. Re6 {[%clk 0:00:03.3]} 46... h5 {[%clk 0:00:40.6]} 47. Re8
{[%clk 0:00:02.9]} 47... h4 {[%clk 0:00:38.7]} 48. Rg8+ {[%clk 0:00:03.8]} 48...
Kf4 {[%clk 0:00:38.7]} 49. Rf8+ {[%clk 0:00:03.9]} 49... Bxf8 {[%clk 0:00:38.4]}
0-1

[Event "Late-Titled-Tuesday-Blitz-March-26-2024"]
[Site "Chess.com"]
[Date "2024.03.26"]
[Round "3"]
[White "dianamirza"]
[Black "RianKapriaga"]
[Result "0-1"]
[WhiteElo "1977"]
[BlackElo "2354"]
[TimeControl "180+1"]
[EndTime "14:29:56 PDT"]
[Termination "RianKapriaga won on time"]

1. d4 {[%clk 0:02:43.9]} 1... Nf6 {[%clk 0:02:58.7]} 2. Nf3 {[%clk 0:02:38.4]}
2... d5 {[%clk 0:02:57.4]} 3. e3 {[%clk 0:02:26.6]} 3... c6 {[%clk 0:02:55]} 4.
Bd3 {[%clk 0:02:27.5]} 4... a6 {[%clk 0:02:52.5]} 5. b3 {[%clk 0:02:27.8]} 5...
Bg4 {[%clk 0:02:51.2]} 6. Bb2 {[%clk 0:02:28]} 6... Nbd7 {[%clk 0:02:50.8]} 7.
h3 {[%clk 0:02:28]} 7... Bh5 {[%clk 0:02:49.8]} 8. Nbd2 {[%clk 0:02:28.6]} 8...
e6 {[%clk 0:02:49.9]} 9. O-O {[%clk 0:02:27.2]} 9... Bd6 {[%clk 0:02:46.6]} 10.
Qe2 {[%clk 0:02:27.3]} 10... O-O {[%clk 0:02:45.1]} 11. g4 {[%clk 0:02:25.2]}
11... Bg6 {[%clk 0:02:44.2]} 12. Bxg6 {[%clk 0:02:25.5]} 12... hxg6 {[%clk
0:02:45.1]} 13. Ne5 {[%clk 0:02:25.8]} 13... Ne4 {[%clk 0:02:29.7]} 14. Nxe4
{[%clk 0:02:16.9]} 14... dxe4 {[%clk 0:02:30.6]} 15. Nc4 {[%clk 0:01:56]} 15...
Bc7 {[%clk 0:02:27.2]} 16. f4 {[%clk 0:01:46.1]} 16... exf3 {[%clk 0:02:24.4]}
17. Qxf3 {[%clk 0:01:44.7]} 17... Qg5 {[%clk 0:02:11.1]} 18. e4 {[%clk
0:01:35.4]} 18... f5 {[%clk 0:02:07.7]} 19. e5 {[%clk 0:01:27.9]} 19... fxg4
{[%clk 0:01:33.3]} 20. Qxg4 {[%clk 0:01:23.5]} 20... Qxg4+ {[%clk 0:01:32.2]}
21. hxg4 {[%clk 0:01:24.4]} 21... b5 {[%clk 0:01:30.3]} 22. Nd2 {[%clk
0:01:15.8]} 22... Bb6 {[%clk 0:01:28]} 23. Ne4 {[%clk 0:01:12.7]} 23... Nxe5
{[%clk 0:01:24.4]} 24. Ng5 {[%clk 0:00:42.2]} 24... Nxg4 {[%clk 0:01:15.8]} 25.
Nxe6 {[%clk 0:00:40.7]} 25... Rxf1+ {[%clk 0:01:05.9]} 26. Rxf1 {[%clk
0:00:40.6]} 26... Re8 {[%clk 0:01:05.1]} 27. Nc5 {[%clk 0:00:21]} 27... Bxc5
{[%clk 0:01:04]} 28. dxc5 {[%clk 0:00:21.3]} 28... Re2 {[%clk 0:01:03]} 29. Rd1
{[%clk 0:00:09]} 29... Ne3 {[%clk 0:00:56.9]} 30. Rd8+ {[%clk 0:00:08.3]} 30...
Kh7 {[%clk 0:00:56]} 31. Be5 {[%clk 0:00:04.2]} 31... Rg2+ {[%clk 0:00:50.5]}
32. Kh1 {[%clk 0:00:04.1]} 32... Rxc2 {[%clk 0:00:47.9]} 33. Bd6 {[%clk
0:00:03.3]} 33... Nf5 {[%clk 0:00:33.1]} 34. Bf8 {[%clk 0:00:02.6]} 34... Rxa2
{[%clk 0:00:28.3]} 35. Rc8 {[%clk 0:00:03]} 35... Nd4 {[%clk 0:00:20.6]} 36. Rc7
{[%clk 0:00:02]} 36... Nf3 {[%clk 0:00:20.3]} 37. Rxg7+ {[%clk 0:00:01.5]} 37...
Kh8 {[%clk 0:00:19.1]} 0-1

[Event "Late-Titled-Tuesday-Blitz-March-26-2024"]
[Site "Chess.com"]
[Date "2024.03.26"]
[Round "3"]
[White "GMKrikor"]
[Black "Juicy_Fork"]
[Result "0-1"]
[WhiteElo "2834"]
[BlackElo "2567"]
[TimeControl "180+1"]
[EndTime "14:29:58 PDT"]
[Termination "Juicy_Fork won by resignation"]

1. Nf3 {[%clk 0:03:00.9]} 1... Nf6 {[%clk 0:02:59.2]} 2. c4 {[%clk 0:03:00]}
2... g6 {[%clk 0:02:57.7]} 3. Nc3 {[%clk 0:03:00.2]} 3... Bg7 {[%clk 0:02:57.7]}
4. e4 {[%clk 0:02:59.7]} 4... d6 {[%clk 0:02:58]} 5. d4 {[%clk 0:02:59.8]} 5...
O-O {[%clk 0:02:57.2]} 6. h3 {[%clk 0:02:59.9]} 6... e5 {[%clk 0:02:56.5]} 7.
dxe5 {[%clk 0:03:00.8]} 7... dxe5 {[%clk 0:02:55.8]} 8. Qxd8 {[%clk 0:03:01.7]}
8... Rxd8 {[%clk 0:02:56.3]} 9. Bg5 {[%clk 0:03:02.2]} 9... Re8 {[%clk
0:02:53.6]} 10. Nd5 {[%clk 0:03:02.1]} 10... Nxd5 {[%clk 0:02:51.8]} 11. cxd5
{[%clk 0:03:03]} 11... h6 {[%clk 0:02:50.8]} 12. Be3 {[%clk 0:03:01.9]} 12... f5
{[%clk 0:02:47.2]} 13. Rc1 {[%clk 0:02:53.2]} 13... c6 {[%clk 0:02:15.3]} 14.
Bc4 {[%clk 0:02:52.1]} 14... Kh7 {[%clk 0:02:09.6]} 15. g4 {[%clk 0:02:33.6]}
15... fxe4 {[%clk 0:01:46.5]} 16. Nd2 {[%clk 0:02:33.2]} 16... cxd5 {[%clk
0:01:47.2]} 17. Bxd5 {[%clk 0:02:33.1]} 17... Nc6 {[%clk 0:01:47.9]} 18. Nxe4
{[%clk 0:02:11.4]} 18... Be6 {[%clk 0:01:41.9]} 19. Bxe6 {[%clk 0:02:07.7]}
19... Rxe6 {[%clk 0:01:42.8]} 20. Ke2 {[%clk 0:02:01.4]} 20... Nd4+ {[%clk
0:01:34.7]} 21. Bxd4 {[%clk 0:01:57.7]} 21... exd4 {[%clk 0:01:35.6]} 22. Kd3
{[%clk 0:01:58.1]} 22... Rae8 {[%clk 0:01:25.4]} 23. f3 {[%clk 0:01:52.4]} 23...
Ra6 {[%clk 0:01:22.6]} 24. a3 {[%clk 0:01:48.4]} 24... Rb6 {[%clk 0:01:18.3]}
25. b4 {[%clk 0:01:41.2]} 25... a5 {[%clk 0:01:13.8]} 26. Rc4 {[%clk 0:01:35.6]}
26... axb4 {[%clk 0:01:10.7]} 27. Rxb4 {[%clk 0:01:33.7]} 27... Rxb4 {[%clk
0:01:08]} 28. axb4 {[%clk 0:01:34.6]} 28... Ra8 {[%clk 0:01:08.1]} 29. Rf1
{[%clk 0:01:13]} 29... b5 {[%clk 0:00:56.4]} 30. Nd6 {[%clk 0:00:52.2]} 30...
Ra3+ {[%clk 0:00:51.5]} 31. Ke4 {[%clk 0:00:52.8]} 31... Re3+ {[%clk 0:00:47.2]}
32. Kd5 {[%clk 0:00:53.1]} 32... Rb3 {[%clk 0:00:25.4]} 33. Nxb5 {[%clk
0:00:27.2]} 33... Rxb4 {[%clk 0:00:24.1]} 34. Nd6 {[%clk 0:00:27.9]} 34... d3
{[%clk 0:00:20.5]} 35. Nc4 {[%clk 0:00:27.6]} 35... d2 {[%clk 0:00:09.3]} 36.
Rd1 {[%clk 0:00:23.8]} 36... Bc3 {[%clk 0:00:09.5]} 37. Kc5 {[%clk 0:00:17.3]}
37... Rb8 {[%clk 0:00:09.5]} 38. Kd5 {[%clk 0:00:15.9]} 38... Rd8+ {[%clk
0:00:09.2]} 39. Ke4 {[%clk 0:00:15.7]} 39... Rd4+ {[%clk 0:00:09.4]} 40. Ke3
{[%clk 0:00:12.4]} 40... Rxc4 {[%clk 0:00:10.3]} 41. Kd3 {[%clk 0:00:13.3]}
41... Rc7 {[%clk 0:00:10]} 42. f4 {[%clk 0:00:14]} 42... Ba5 {[%clk 0:00:09.8]}
43. Rb1 {[%clk 0:00:12.9]} 43... Rc1 {[%clk 0:00:09]} 0-1

[Event "Late-Titled-Tuesday-Blitz-March-26-2024"]
[Site "Chess.com"]
[Date "2024.03.26"]
[Round "3"]
[White "Hirna2005"]
[Black "Aram7Adam"]
[Result "0-1"]
[WhiteElo "2293"]
[BlackElo "2445"]
[TimeControl "180+1"]
[EndTime "14:29:58 PDT"]
[Termination "Aram7Adam won by resignation"]

1. e4 {[%clk 0:03:00.9]} 1... c5 {[%clk 0:02:59.5]} 2. c3 {[%clk 0:03:00.7]}
2... d5 {[%clk 0:02:59.3]} 3. exd5 {[%clk 0:03:00.9]} 3... Qxd5 {[%clk
0:03:00.2]} 4. Nf3 {[%clk 0:03:01.3]} 4... Nc6 {[%clk 0:03:00.1]} 5. Na3 {[%clk
0:03:01.3]} 5... e6 {[%clk 0:02:56.6]} 6. Bc4 {[%clk 0:03:00.7]} 6... Qd8 {[%clk
0:02:56.5]} 7. O-O {[%clk 0:02:57.6]} 7... Nf6 {[%clk 0:02:56.4]} 8. Re1 {[%clk
0:02:57.4]} 8... Be7 {[%clk 0:02:56.4]} 9. Nc2 {[%clk 0:02:55.4]} 9... O-O
{[%clk 0:02:54.4]} 10. d4 {[%clk 0:02:55.5]} 10... cxd4 {[%clk 0:02:55.3]} 11.
Ncxd4 {[%clk 0:02:55.7]} 11... Nxd4 {[%clk 0:02:55.5]} 12. Nxd4 {[%clk
0:02:55.6]} 12... a6 {[%clk 0:02:55.6]} 13. Bf4 {[%clk 0:02:52.3]} 13... Bd7
{[%clk 0:02:28.8]} 14. Qf3 {[%clk 0:02:48.8]} 14... b5 {[%clk 0:02:19.3]} 15.
Bd3 {[%clk 0:02:46.1]} 15... Nd5 {[%clk 0:01:56.7]} 16. Bg3 {[%clk 0:02:37.1]}
16... Rc8 {[%clk 0:01:47.2]} 17. a4 {[%clk 0:02:33.6]} 17... b4 {[%clk
0:01:44.3]} 18. Bxa6 {[%clk 0:02:29.5]} 18... bxc3 {[%clk 0:01:36.3]} 19. Bxc8
{[%clk 0:02:16]} 19... cxb2 {[%clk 0:01:35.3]} 20. Rab1 {[%clk 0:02:16.1]} 20...
Qxc8 {[%clk 0:01:34.2]} 21. Rxb2 {[%clk 0:02:14.5]} 21... Bf6 {[%clk 0:01:32.9]}
22. Rb8 {[%clk 0:02:02.9]} 22... Qa6 {[%clk 0:01:17.3]} 23. Rxf8+ {[%clk
0:02:01.1]} 23... Kxf8 {[%clk 0:01:18.2]} 24. Nb5 {[%clk 0:01:52.8]} 24... Bxb5
{[%clk 0:01:06.3]} 25. axb5 {[%clk 0:01:51.8]} 25... Qxb5 {[%clk 0:01:06.6]} 26.
Bd6+ {[%clk 0:01:44.8]} 26... Kg8 {[%clk 0:01:05.7]} 27. h3 {[%clk 0:01:40.8]}
27... h6 {[%clk 0:01:05]} 28. Qe2 {[%clk 0:01:36.2]} 28... Qc6 {[%clk
0:01:02.2]} 29. Bg3 {[%clk 0:01:36]} 29... Nc3 {[%clk 0:00:58.4]} 30. Qc2 {[%clk
0:01:29]} 30... Qd5 {[%clk 0:00:54.8]} 31. Re3 {[%clk 0:01:23.9]} 31... Qd4
{[%clk 0:00:43.8]} 32. Rd3 {[%clk 0:01:16]} 32... Qe4 {[%clk 0:00:39]} 33. Kh2
{[%clk 0:01:11.6]} 33... Qb4 {[%clk 0:00:35.9]} 34. Bd6 {[%clk 0:01:07.7]} 34...
Qc4 {[%clk 0:00:33.3]} 35. Bg3 {[%clk 0:01:01.8]} 35... g6 {[%clk 0:00:32.7]}
36. Qd2 {[%clk 0:00:54.5]} 36... Kg7 {[%clk 0:00:31.8]} 37. Qe3 {[%clk
0:00:51.9]} 37... h5 {[%clk 0:00:31.1]} 38. Be5 {[%clk 0:00:50.6]} 38... Nd5
{[%clk 0:00:29.8]} 39. Bxf6+ {[%clk 0:00:49.9]} 39... Kxf6 {[%clk 0:00:29.3]}
40. Qf3+ {[%clk 0:00:48.1]} 40... Kg7 {[%clk 0:00:29.3]} 41. Ra3 {[%clk
0:00:47.5]} 41... h4 {[%clk 0:00:29]} 42. Qg4 {[%clk 0:00:35.6]} 42... Qc7+
{[%clk 0:00:28.2]} 43. g3 {[%clk 0:00:36]} 43... hxg3+ {[%clk 0:00:28]} 44. Qxg3
{[%clk 0:00:36.2]} 44... Qb6 {[%clk 0:00:26.1]} 45. Rb3 {[%clk 0:00:34.7]} 45...
Qc5 {[%clk 0:00:25.2]} 46. Qe5+ {[%clk 0:00:33.3]} 46... Nf6 {[%clk 0:00:20.5]}
47. Rf3 {[%clk 0:00:31.4]} 47... Qxe5+ {[%clk 0:00:20.4]} 48. Kg2 {[%clk
0:00:30.4]} 48... Qe4 {[%clk 0:00:20.7]} 49. Kg3 {[%clk 0:00:30.1]} 49... Nh5+
{[%clk 0:00:21]} 50. Kg2 {[%clk 0:00:30.2]} 50... g5 {[%clk 0:00:21.2]} 51. h4
{[%clk 0:00:29.3]} 51... gxh4 {[%clk 0:00:21.4]} 52. Kh2 {[%clk 0:00:26.9]}
52... Qxf3 {[%clk 0:00:22.3]} 0-1

[Event "Late-Titled-Tuesday-Blitz-March-26-2024"]
[Site "Chess.com"]
[Date "2024.03.26"]
[Round "3"]
[White "kecalk"]
[Black "CURRUTACO59"]
[Result "0-1"]
[WhiteElo "2485"]
[BlackElo "2282"]
[TimeControl "180+1"]
[EndTime "14:29:59 PDT"]
[Termination "CURRUTACO59 won by resignation"]

1. Nf3 {[%clk 0:03:00.9]} 1... Nf6 {[%clk 0:02:59.5]} 2. d4 {[%clk 0:03:01.1]}
2... e6 {[%clk 0:02:59.2]} 3. Bg5 {[%clk 0:03:01.1]} 3... d5 {[%clk 0:02:55.9]}
4. e3 {[%clk 0:03:01.2]} 4... b6 {[%clk 0:02:52.8]} 5. Nbd2 {[%clk 0:03:00.1]}
5... Be7 {[%clk 0:02:51.6]} 6. Bd3 {[%clk 0:02:57.6]} 6... Ba6 {[%clk
0:02:51.3]} 7. Bxa6 {[%clk 0:02:53]} 7... Nxa6 {[%clk 0:02:52.2]} 8. O-O {[%clk
0:02:52.8]} 8... Nb8 {[%clk 0:02:49.7]} 9. c4 {[%clk 0:02:52.7]} 9... Nbd7
{[%clk 0:02:43.1]} 10. cxd5 {[%clk 0:02:37]} 10... Nxd5 {[%clk 0:02:42.5]} 11.
Bxe7 {[%clk 0:02:35.4]} 11... Qxe7 {[%clk 0:02:43.4]} 12. e4 {[%clk 0:02:26.3]}
12... Nf4 {[%clk 0:02:39.6]} 13. Qb3 {[%clk 0:02:19.9]} 13... c5 {[%clk
0:02:31.7]} 14. Qe3 {[%clk 0:02:16.4]} 14... Ng6 {[%clk 0:02:25.1]} 15. Nb3
{[%clk 0:01:41.1]} 15... cxd4 {[%clk 0:02:20.9]} 16. Nbxd4 {[%clk 0:01:40.9]}
16... O-O {[%clk 0:02:18.3]} 17. Rac1 {[%clk 0:01:38.4]} 17... Rfc8 {[%clk
0:02:15.7]} 18. Nc6 {[%clk 0:01:31.2]} 18... Qf8 {[%clk 0:01:57]} 19. e5 {[%clk
0:01:19.2]} 19... Ne7 {[%clk 0:01:51.1]} 20. Nfd4 {[%clk 0:01:07.1]} 20... Nd5
{[%clk 0:01:32]} 21. Qf3 {[%clk 0:01:01.1]} 21... a6 {[%clk 0:01:23.4]} 22. a3
{[%clk 0:00:55.3]} 22... b5 {[%clk 0:01:21.1]} 23. Rc2 {[%clk 0:00:39.8]} 23...
N7b6 {[%clk 0:01:17.7]} 24. Rfc1 {[%clk 0:00:37.2]} 24... Nc4 {[%clk 0:01:17.1]}
25. b3 {[%clk 0:00:33.6]} 25... Nxa3 {[%clk 0:01:13.2]} 26. Ra2 {[%clk
0:00:26.1]} 26... b4 {[%clk 0:01:04.5]} 27. h4 {[%clk 0:00:20.8]} 27... h6
{[%clk 0:01:03.2]} 28. g3 {[%clk 0:00:16.9]} 28... Rc7 {[%clk 0:00:51.9]} 29.
Kg2 {[%clk 0:00:05.6]} 29... Rac8 {[%clk 0:00:51.1]} 30. Rd2 {[%clk 0:00:05.4]}
30... Nb5 {[%clk 0:00:36.2]} 31. Rc4 {[%clk 0:00:03.8]} 31... Nxd4 {[%clk
0:00:33.4]} 32. Nxd4 {[%clk 0:00:04.3]} 32... Rxc4 {[%clk 0:00:33]} 33. bxc4
{[%clk 0:00:05.2]} 33... Rxc4 {[%clk 0:00:33]} 34. Qb3 {[%clk 0:00:05.9]} 34...
Qc5 {[%clk 0:00:30.2]} 35. Nf3 {[%clk 0:00:03.6]} 35... Rc3 {[%clk 0:00:26.9]}
36. Qa4 {[%clk 0:00:04.1]} 36... Qc6 {[%clk 0:00:21]} 37. Qa5 {[%clk 0:00:03.4]}
37... Nf4+ {[%clk 0:00:18.1]} 38. gxf4 {[%clk 0:00:02.2]} 38... Qxf3+ {[%clk
0:00:18]} 39. Kf1 {[%clk 0:00:01.8]} 39... Rc1+ {[%clk 0:00:16.9]} 0-1